[Event "Early-Titled-Tuesday-Blitz-February-20-2024"]
[Site "Chess.com"]
[Date "2024.02.20"]
[Round "3"]
[White "kpio91"]
[Black "Ali_rastbod"]
[Result "1/2-1/2"]
[WhiteElo "2891"]
[BlackElo "2695"]
[TimeControl "180+1"]
[EndTime "8:30:59 PST"]
[Termination "Game drawn by repetition"]

1. d4 {[%clk 0:02:58.5]} 1... Nf6 {[%clk 0:02:58.5]} 2. Bg5 {[%clk 0:02:58]}
2... d5 {[%clk 0:02:56.3]} 3. Nd2 {[%clk 0:02:54.7]} 3... c5 {[%clk 0:02:55.7]}
4. e3 {[%clk 0:02:54]} 4... cxd4 {[%clk 0:02:55.3]} 5. exd4 {[%clk 0:02:54]}
5... Nc6 {[%clk 0:02:56]} 6. c3 {[%clk 0:02:52.8]} 6... Qb6 {[%clk 0:02:56.6]}
7. Qb3 {[%clk 0:02:51.5]} 7... h6 {[%clk 0:02:51.6]} 8. Bf4 {[%clk 0:02:47.2]}
8... Bf5 {[%clk 0:02:45.6]} 9. Ngf3 {[%clk 0:02:46.3]} 9... e6 {[%clk
0:02:45.9]} 10. h3 {[%clk 0:02:38.7]} 10... Be7 {[%clk 0:02:45.2]} 11. Be2
{[%clk 0:02:38.9]} 11... O-O {[%clk 0:02:45]} 12. O-O {[%clk 0:02:39.1]} 12...
Rac8 {[%clk 0:02:42.1]} 13. Rfc1 {[%clk 0:02:32.1]} 13... Ne4 {[%clk 0:02:38.6]}
14. Nxe4 {[%clk 0:02:21.5]} 14... Bxe4 {[%clk 0:02:17.1]} 15. Ne1 {[%clk
0:02:18.6]} 15... Na5 {[%clk 0:02:04.7]} 16. Qxb6 {[%clk 0:02:16]} 16... axb6
{[%clk 0:02:05.6]} 17. Bd3 {[%clk 0:01:50.7]} 17... Nc4 {[%clk 0:01:31.4]} 18.
Bxe4 {[%clk 0:01:38.4]} 18... dxe4 {[%clk 0:01:32.3]} 19. b3 {[%clk 0:01:38.6]}
19... Na3 {[%clk 0:01:24.2]} 20. c4 {[%clk 0:01:21]} 20... Rfd8 {[%clk
0:01:22.2]} 21. Rd1 {[%clk 0:01:16.5]} 21... Bf6 {[%clk 0:01:07.4]} 22. Be3
{[%clk 0:01:15.2]} 22... b5 {[%clk 0:01:01]} 23. c5 {[%clk 0:01:05.5]} 23... b4
{[%clk 0:01:00.8]} 24. Rac1 {[%clk 0:01:04]} 24... Rd5 {[%clk 0:00:51.3]} 25.
Nc2 {[%clk 0:00:54]} 25... Nxc2 {[%clk 0:00:50.8]} 26. Rxc2 {[%clk 0:00:53.9]}
26... e5 {[%clk 0:00:50.7]} 27. Rcd2 {[%clk 0:00:44.8]} 27... exd4 {[%clk
0:00:44.8]} 28. Bxd4 {[%clk 0:00:44.7]} 28... Rcd8 {[%clk 0:00:37.4]} 29. Be3
{[%clk 0:00:44.1]} 29... Rd3 {[%clk 0:00:37.6]} 30. Kf1 {[%clk 0:00:33.9]} 30...
Bc3 {[%clk 0:00:37.3]} 31. Rxd3 {[%clk 0:00:33]} 31... exd3 {[%clk 0:00:38.2]}
32. Bd2 {[%clk 0:00:27.9]} 32... f5 {[%clk 0:00:34.9]} 33. a4 {[%clk 0:00:26.5]}
33... Kf7 {[%clk 0:00:29.7]} 34. Be3 {[%clk 0:00:26]} 34... g5 {[%clk
0:00:27.8]} 35. g3 {[%clk 0:00:24]} 35... Ke6 {[%clk 0:00:28.4]} 36. f4 {[%clk
0:00:21.7]} 36... g4 {[%clk 0:00:28.7]} 37. h4 {[%clk 0:00:20.4]} 37... Rd5
{[%clk 0:00:25.2]} 38. Kf2 {[%clk 0:00:20.1]} 38... Kd7 {[%clk 0:00:24.7]} 39.
Rb1 {[%clk 0:00:20]} 39... Kc6 {[%clk 0:00:22.5]} 40. Rd1 {[%clk 0:00:20]} 40...
h5 {[%clk 0:00:20.9]} 41. Kf1 {[%clk 0:00:19.9]} 41... Rd8 {[%clk 0:00:16]} 42.
Kf2 {[%clk 0:00:20]} 42... Rd7 {[%clk 0:00:14]} 43. Kf1 {[%clk 0:00:19.9]} 43...
Kc7 {[%clk 0:00:14]} 44. Kf2 {[%clk 0:00:19.9]} 44... Kd8 {[%clk 0:00:14.1]} 45.
Kf1 {[%clk 0:00:20.1]} 45... Ke7 {[%clk 0:00:14.8]} 46. Kf2 {[%clk 0:00:20.7]}
46... Ke6 {[%clk 0:00:15.4]} 47. Kg1 {[%clk 0:00:21.4]} 47... d2 {[%clk
0:00:11.6]} 48. Kf2 {[%clk 0:00:21.3]} 48... Kd5 {[%clk 0:00:07.9]} 49. Bxd2
{[%clk 0:00:19.4]} 49... Kc6 {[%clk 0:00:08.1]} 50. Ke2 {[%clk 0:00:19.1]} 50...
Bxd2 {[%clk 0:00:04.1]} 51. Rxd2 {[%clk 0:00:19.2]} 51... Re7+ {[%clk
0:00:04.5]} 52. Kd3 {[%clk 0:00:15.8]} 52... Kxc5 {[%clk 0:00:04.6]} 53. Rc2+
{[%clk 0:00:16.2]} 53... Kd5 {[%clk 0:00:05.1]} 54. Rc4 {[%clk 0:00:15.9]} 54...
Re1 {[%clk 0:00:05.2]} 55. Rxb4 {[%clk 0:00:16.1]} 55... Rd1+ {[%clk 0:00:05.7]}
56. Ke3 {[%clk 0:00:14.4]} 56... Rg1 {[%clk 0:00:05.7]} 57. Rb5+ {[%clk
0:00:13]} 57... Ke6 {[%clk 0:00:04.8]} 58. Kf2 {[%clk 0:00:13.7]} 58... Rc1
{[%clk 0:00:04.4]} 59. Rxb7 {[%clk 0:00:13.7]} 59... Kd5 {[%clk 0:00:04.8]} 60.
Rb5+ {[%clk 0:00:13.2]} 60... Kd4 {[%clk 0:00:05.1]} 61. a5 {[%clk 0:00:12.9]}
61... Rc2+ {[%clk 0:00:05.4]} 62. Kf1 {[%clk 0:00:13.1]} 62... Ke3 {[%clk
0:00:06.3]} 63. a6 {[%clk 0:00:11.8]} 63... Ra2 {[%clk 0:00:03.9]} 64. b4 {[%clk
0:00:06.1]} 64... Ra1+ {[%clk 0:00:02.9]} 65. Kg2 {[%clk 0:00:05.9]} 65... Ra2+
{[%clk 0:00:03.6]} 66. Kg1 {[%clk 0:00:06.3]} 66... Rxa6 {[%clk 0:00:04.3]} 67.
Rxf5 {[%clk 0:00:06.3]} 67... Kf3 {[%clk 0:00:04.2]} 68. Rxh5 {[%clk 0:00:05.7]}
68... Ra1+ {[%clk 0:00:04.5]} 69. Kh2 {[%clk 0:00:05.8]} 69... Ra2+ {[%clk
0:00:05.4]} 70. Kg1 {[%clk 0:00:05.4]} 70... Kxg3 {[%clk 0:00:06.3]} 71. Kf1
{[%clk 0:00:05.7]} 71... Kf3 {[%clk 0:00:07]} 72. Ke1 {[%clk 0:00:03.3]} 72...
g3 {[%clk 0:00:07.5]} 73. Rg5 {[%clk 0:00:03.7]} 73... g2 {[%clk 0:00:07.9]} 74.
b5 {[%clk 0:00:04.3]} 74... Ra1+ {[%clk 0:00:07.2]} 75. Kd2 {[%clk 0:00:04.6]}
75... g1=Q {[%clk 0:00:08.1]} 76. Rxg1 {[%clk 0:00:04.7]} 76... Rxg1 {[%clk
0:00:09]} 77. Kd3 {[%clk 0:00:05.4]} 77... Rb1 {[%clk 0:00:08.4]} 78. Kc4 {[%clk
0:00:05.6]} 78... Ke4 {[%clk 0:00:09.3]} 79. Kc5 {[%clk 0:00:06]} 79... Rc1+
{[%clk 0:00:09.3]} 80. Kd6 {[%clk 0:00:06]} 80... Rd1+ {[%clk 0:00:08.3]} 81.
Kc6 {[%clk 0:00:06]} 81... Kf5 {[%clk 0:00:05.1]} 82. b6 {[%clk 0:00:06]} 82...
Ke6 {[%clk 0:00:06]} 83. b7 {[%clk 0:00:05.4]} 83... Rc1+ {[%clk 0:00:06]} 84.
Kb6 {[%clk 0:00:05.8]} 84... Rb1+ {[%clk 0:00:03.6]} 85. Kc7 {[%clk 0:00:05.9]}
85... Rc1+ {[%clk 0:00:03.5]} 86. Kd8 {[%clk 0:00:05.8]} 86... Rd1+ {[%clk
0:00:02.9]} 87. Kc8 {[%clk 0:00:04.8]} 87... Rc1+ {[%clk 0:00:03.1]} 88. Kd8
{[%clk 0:00:05.3]} 88... Rd1+ {[%clk 0:00:02.3]} 89. Kc8 {[%clk 0:00:05.7]}
89... Rc1+ {[%clk 0:00:02.9]} 90. Kd8 {[%clk 0:00:05.9]} 1/2-1/2

[Event "Early-Titled-Tuesday-Blitz-February-20-2024"]
[Site "Chess.com"]
[Date "2024.02.20"]
[Round "3"]
[White "Anton_Demchenko"]
[Black "CaspiIsrael"]
[Result "1/2-1/2"]
[WhiteElo "2909"]
[BlackElo "2717"]
[TimeControl "180+1"]
[EndTime "8:31:10 PST"]
[Termination "Game drawn by repetition"]

1. e4 {[%clk 0:03:00.9]} 1... e5 {[%clk 0:02:56.5]} 2. Nf3 {[%clk 0:03:00.8]}
2... Nf6 {[%clk 0:02:53.5]} 3. Nxe5 {[%clk 0:03:01]} 3... d6 {[%clk 0:02:53.1]}
4. Nf3 {[%clk 0:03:01.7]} 4... Nxe4 {[%clk 0:02:53.6]} 5. Bd3 {[%clk 0:03:00.3]}
5... d5 {[%clk 0:02:51.9]} 6. O-O {[%clk 0:03:00.6]} 6... Be7 {[%clk 0:02:51.2]}
7. Re1 {[%clk 0:02:58.4]} 7... Nd6 {[%clk 0:02:51.4]} 8. Bf1 {[%clk 0:02:56.7]}
8... O-O {[%clk 0:02:50.5]} 9. Nc3 {[%clk 0:02:52.3]} 9... c6 {[%clk 0:02:50.3]}
10. Ne2 {[%clk 0:02:51.8]} 10... Nd7 {[%clk 0:02:43.4]} 11. Ng3 {[%clk
0:02:51.9]} 11... Nf6 {[%clk 0:02:40.1]} 12. d3 {[%clk 0:02:36.3]} 12... h6
{[%clk 0:02:37.4]} 13. Bf4 {[%clk 0:02:33.1]} 13... Re8 {[%clk 0:02:33.5]} 14.
c3 {[%clk 0:02:26.6]} 14... Nf5 {[%clk 0:02:21.1]} 15. Qb3 {[%clk 0:02:20.2]}
15... Qb6 {[%clk 0:02:19.4]} 16. Qc2 {[%clk 0:02:04.4]} 16... Nxg3 {[%clk
0:02:15.9]} 17. Bxg3 {[%clk 0:02:03.8]} 17... Bg4 {[%clk 0:02:12.1]} 18. Ne5
{[%clk 0:01:54.8]} 18... Bf5 {[%clk 0:02:03]} 19. h3 {[%clk 0:01:52.8]} 19...
Qd8 {[%clk 0:01:46.8]} 20. Qb3 {[%clk 0:01:46.4]} 20... Qb6 {[%clk 0:01:45.7]}
21. Qc2 {[%clk 0:01:24.3]} 21... Qd8 {[%clk 0:01:44.7]} 22. Re2 {[%clk
0:01:08.4]} 22... Bd6 {[%clk 0:01:42.3]} 23. Rae1 {[%clk 0:01:07.8]} 23... Qc7
{[%clk 0:01:38.8]} 24. Bh2 {[%clk 0:00:42.5]} 24... Re7 {[%clk 0:01:30.9]} 25.
Nf3 {[%clk 0:00:34.5]} 25... Bxh2+ {[%clk 0:01:30.3]} 26. Nxh2 {[%clk
0:00:34.4]} 26... Rae8 {[%clk 0:01:30.8]} 27. Nf3 {[%clk 0:00:30.3]} 27... Rxe2
{[%clk 0:01:20.1]} 28. Rxe2 {[%clk 0:00:31.2]} 28... Rxe2 {[%clk 0:01:19]} 29.
Qxe2 {[%clk 0:00:31.5]} 29... Kf8 {[%clk 0:01:18.9]} 30. Qe3 {[%clk 0:00:31.1]}
30... Qb6 {[%clk 0:01:12.3]} 31. Qf4 {[%clk 0:00:31.2]} 31... Be6 {[%clk
0:01:05]} 32. b4 {[%clk 0:00:31.4]} 32... Qd8 {[%clk 0:01:00.3]} 33. a4 {[%clk
0:00:30.2]} 33... a6 {[%clk 0:01:00.2]} 34. a5 {[%clk 0:00:30.1]} 34... Ne8
{[%clk 0:00:59.5]} 35. Nd4 {[%clk 0:00:27.8]} 35... Qd6 {[%clk 0:00:58.8]} 36.
Qe3 {[%clk 0:00:26.9]} 36... Bd7 {[%clk 0:00:58.1]} 37. Nb3 {[%clk 0:00:27.4]}
37... Nc7 {[%clk 0:00:56.7]} 38. Nc5 {[%clk 0:00:26.2]} 38... Bc8 {[%clk
0:00:57.2]} 39. d4 {[%clk 0:00:25]} 39... Ne6 {[%clk 0:00:56.8]} 40. Nd3 {[%clk
0:00:20.3]} 40... f6 {[%clk 0:00:52.4]} 41. Be2 {[%clk 0:00:20.7]} 41... Nc7
{[%clk 0:00:44.1]} 42. f3 {[%clk 0:00:18.8]} 42... Kf7 {[%clk 0:00:42.7]} 43.
Kf2 {[%clk 0:00:18.3]} 43... h5 {[%clk 0:00:42.1]} 44. Nc5 {[%clk 0:00:12]}
44... h4 {[%clk 0:00:40.7]} 45. Kf1 {[%clk 0:00:11.3]} 45... Qh2 {[%clk
0:00:38.6]} 46. Qf2 {[%clk 0:00:10]} 46... Qh1+ {[%clk 0:00:35.6]} 47. Qg1
{[%clk 0:00:10.2]} 47... Qxg1+ {[%clk 0:00:35.9]} 48. Kxg1 {[%clk 0:00:11.1]}
48... g5 {[%clk 0:00:35.7]} 49. Kf2 {[%clk 0:00:10.5]} 49... Ne6 {[%clk
0:00:34.2]} 50. Bd3 {[%clk 0:00:06.1]} 50... Nxc5 {[%clk 0:00:31.5]} 51. bxc5
{[%clk 0:00:06.8]} 51... Be6 {[%clk 0:00:30.5]} 52. Ke3 {[%clk 0:00:05.8]} 52...
f5 {[%clk 0:00:30.2]} 53. f4 {[%clk 0:00:05.9]} 53... Kf6 {[%clk 0:00:26.9]} 54.
Be2 {[%clk 0:00:06.3]} 54... Bf7 {[%clk 0:00:21.1]} 55. Bd1 {[%clk 0:00:06]}
55... Bg6 {[%clk 0:00:19.7]} 56. Bf3 {[%clk 0:00:04.9]} 56... Bf7 {[%clk
0:00:19.6]} 57. Be2 {[%clk 0:00:04.9]} 57... Kg6 {[%clk 0:00:16.6]} 58. Kf3
{[%clk 0:00:04.6]} 58... Kf6 {[%clk 0:00:16.5]} 59. Ke3 {[%clk 0:00:03]} 59...
Kg6 {[%clk 0:00:16.3]} 60. Bf1 {[%clk 0:00:03.6]} 60... Kf6 {[%clk 0:00:16.2]}
61. Bd3 {[%clk 0:00:04.4]} 61... g4 {[%clk 0:00:16.1]} 62. Be2 {[%clk
0:00:03.9]} 62... Be6 {[%clk 0:00:14.9]} 63. Bd1 {[%clk 0:00:03.6]} 63... Kg6
{[%clk 0:00:14.1]} 64. Bc2 {[%clk 0:00:02.7]} 64... Kf6 {[%clk 0:00:14.7]} 65.
Bb1 {[%clk 0:00:03.1]} 65... g3 {[%clk 0:00:13.6]} 66. Bd3 {[%clk 0:00:03]}
66... Bf7 {[%clk 0:00:14]} 67. Be2 {[%clk 0:00:03.8]} 67... Ke6 {[%clk
0:00:13.9]} 68. Bf3 {[%clk 0:00:03.8]} 68... Kf6 {[%clk 0:00:14]} 69. Kd3 {[%clk
0:00:03.8]} 69... Be6 {[%clk 0:00:13.6]} 70. Kc2 {[%clk 0:00:04.2]} 70... Kg7
{[%clk 0:00:10]} 71. Kb3 {[%clk 0:00:04.8]} 71... Kf6 {[%clk 0:00:09.6]} 72. Kb4
{[%clk 0:00:05.5]} 72... Bf7 {[%clk 0:00:09.6]} 73. Be2 {[%clk 0:00:06.3]} 73...
Ke7 {[%clk 0:00:09.2]} 74. Ka3 {[%clk 0:00:05.1]} 74... Kf6 {[%clk 0:00:08.2]}
75. Kb2 {[%clk 0:00:05.7]} 75... Kg7 {[%clk 0:00:08.8]} 76. Kc1 {[%clk
0:00:06.2]} 76... Kh6 {[%clk 0:00:09.5]} 77. Kc2 {[%clk 0:00:06.9]} 77... Bh5
{[%clk 0:00:10.1]} 78. Kd2 {[%clk 0:00:05.3]} 78... Bxe2 {[%clk 0:00:08.9]} 79.
Kxe2 {[%clk 0:00:06.2]} 79... Kg6 {[%clk 0:00:09.3]} 80. Kd3 {[%clk 0:00:07.1]}
80... Kf6 {[%clk 0:00:09.8]} 81. Kc2 {[%clk 0:00:06.5]} 81... Ke6 {[%clk
0:00:10.1]} 82. Kb3 {[%clk 0:00:07.3]} 82... Ke7 {[%clk 0:00:10.6]} 83. Kb4
{[%clk 0:00:08]} 83... Ke6 {[%clk 0:00:10.6]} 84. c4 {[%clk 0:00:03.5]} 84...
Kd7 {[%clk 0:00:10.6]} 85. Kc3 {[%clk 0:00:03]} 85... Ke6 {[%clk 0:00:10.4]} 86.
Kd3 {[%clk 0:00:03.2]} 86... Ke7 {[%clk 0:00:10.7]} 87. Kc3 {[%clk 0:00:03.5]}
87... Ke6 {[%clk 0:00:10.8]} 88. Kb3 {[%clk 0:00:04.2]} 88... Ke7 {[%clk
0:00:11.3]} 89. Kb4 {[%clk 0:00:03.3]} 89... dxc4 {[%clk 0:00:11.1]} 90. Kxc4
{[%clk 0:00:03.5]} 90... Ke6 {[%clk 0:00:12]} 91. Kc3 {[%clk 0:00:03]} 91... Kf6
{[%clk 0:00:11.8]} 92. Kd3 {[%clk 0:00:02.6]} 92... Ke7 {[%clk 0:00:11.7]} 93.
Kc3 {[%clk 0:00:01.4]} 93... Kd7 {[%clk 0:00:11.9]} 94. Kc4 {[%clk 0:00:02.3]}
94... Ke6 {[%clk 0:00:12.3]} 95. Kc3 {[%clk 0:00:02.9]} 95... Ke7 {[%clk
0:00:12.2]} 96. Kd3 {[%clk 0:00:03.3]} 96... Kd7 {[%clk 0:00:11.5]} 97. Kc2
{[%clk 0:00:03.4]} 97... Ke6 {[%clk 0:00:11.2]} 98. Kc3 {[%clk 0:00:03.9]}
1/2-1/2

[Event "Early-Titled-Tuesday-Blitz-February-20-2024"]
[Site "Chess.com"]
[Date "2024.02.20"]
[Round "3"]
[White "MatthewG-p4p"]
[Black "Egor_Koshulyan"]
[Result "1-0"]
[WhiteElo "2880"]
[BlackElo "2629"]
[TimeControl "180+1"]
[EndTime "8:31:23 PST"]
[Termination "MatthewG-p4p won by checkmate"]

1. f4 {[%clk 0:02:54.1]} 1... d5 {[%clk 0:02:43.5]} 2. Nf3 {[%clk 0:02:47.5]}
2... Nf6 {[%clk 0:02:43.9]} 3. g3 {[%clk 0:02:48.1]} 3... g6 {[%clk 0:02:43.1]}
4. Bg2 {[%clk 0:02:48.8]} 4... Bg7 {[%clk 0:02:43.6]} 5. O-O {[%clk 0:02:49.7]}
5... O-O {[%clk 0:02:39.2]} 6. d3 {[%clk 0:02:49.3]} 6... c5 {[%clk 0:02:35.9]}
7. Ne5 {[%clk 0:02:49.1]} 7... Ng4 {[%clk 0:02:32.2]} 8. Nxg4 {[%clk 0:02:41.9]}
8... Bxg4 {[%clk 0:02:33.1]} 9. h3 {[%clk 0:02:41.2]} 9... Be6 {[%clk 0:02:21]}
10. e4 {[%clk 0:02:39.1]} 10... dxe4 {[%clk 0:02:21]} 11. dxe4 {[%clk
0:02:39.8]} 11... Bc4 {[%clk 0:02:14.4]} 12. Re1 {[%clk 0:02:37.6]} 12... Nc6
{[%clk 0:01:51.1]} 13. e5 {[%clk 0:02:30.4]} 13... Nd4 {[%clk 0:01:44.9]} 14.
Be3 {[%clk 0:02:26.6]} 14... Ne2+ {[%clk 0:01:41.3]} 15. Kf2 {[%clk 0:02:23.3]}
15... Nd4 {[%clk 0:01:36.1]} 16. Na3 {[%clk 0:02:20.9]} 16... Be6 {[%clk
0:01:30.4]} 17. c3 {[%clk 0:02:20.6]} 17... Nf5 {[%clk 0:01:27.6]} 18. Bxc5
{[%clk 0:02:20.4]} 18... Qc7 {[%clk 0:01:23.9]} 19. Be3 {[%clk 0:02:17]} 19...
Nxe3 {[%clk 0:01:18.6]} 20. Rxe3 {[%clk 0:02:16.3]} 20... Qb6 {[%clk 0:01:19]}
21. Qe2 {[%clk 0:02:08.8]} 21... Rad8 {[%clk 0:01:10.9]} 22. Kg1 {[%clk
0:02:08.8]} 22... Rd7 {[%clk 0:01:07.4]} 23. Qf2 {[%clk 0:01:50.8]} 23... Rfd8
{[%clk 0:01:04.8]} 24. Re2 {[%clk 0:01:34.9]} 24... Qa5 {[%clk 0:00:52.1]} 25.
g4 {[%clk 0:01:30]} 25... Bd5 {[%clk 0:00:46.5]} 26. Bxd5 {[%clk 0:01:25]} 26...
Qxd5 {[%clk 0:00:44.6]} 27. Rae1 {[%clk 0:01:08.3]} 27... b6 {[%clk 0:00:35]}
28. f5 {[%clk 0:01:08.5]} 28... Qxa2 {[%clk 0:00:24]} 29. e6 {[%clk 0:01:01.7]}
29... fxe6 {[%clk 0:00:23.1]} 30. fxe6 {[%clk 0:01:02.6]} 30... Rd3 {[%clk
0:00:20.5]} 31. Qf7+ {[%clk 0:00:57.7]} 31... Kh8 {[%clk 0:00:21.1]} 32. Qxe7
{[%clk 0:00:58.6]} 32... Qd5 {[%clk 0:00:20.2]} 33. Qh4 {[%clk 0:00:55.7]} 33...
g5 {[%clk 0:00:06.6]} 34. Qf2 {[%clk 0:00:50.5]} 34... Rxh3 {[%clk 0:00:06.1]}
35. Qg2 {[%clk 0:00:21.1]} 35... Qd3 {[%clk 0:00:05.6]} 36. Rf2 {[%clk
0:00:21.9]} 36... Rg3 {[%clk 0:00:04.9]} 37. e7 {[%clk 0:00:13.4]} 37... Re8
{[%clk 0:00:05.2]} 38. Nc2 {[%clk 0:00:12.7]} 38... Rxg2+ {[%clk 0:00:05]} 39.
Kxg2 {[%clk 0:00:13.6]} 39... Qd5+ {[%clk 0:00:04.6]} 40. Kg1 {[%clk 0:00:14.1]}
40... Qc5 {[%clk 0:00:03.4]} 41. b4 {[%clk 0:00:12]} 41... Qxc3 {[%clk
0:00:03.9]} 42. Re3 {[%clk 0:00:07.9]} 42... Qc6 {[%clk 0:00:03.6]} 43. Rfe2
{[%clk 0:00:07.9]} 43... Qd5 {[%clk 0:00:03.6]} 44. Kh2 {[%clk 0:00:06.9]} 44...
Qc4 {[%clk 0:00:03.8]} 45. Kh3 {[%clk 0:00:06.4]} 45... Qf4 {[%clk 0:00:04.1]}
46. Ne1 {[%clk 0:00:06.9]} 46... Qf1+ {[%clk 0:00:03.9]} 47. Ng2 {[%clk
0:00:06]} 47... Qh1+ {[%clk 0:00:03.4]} 48. Kg3 {[%clk 0:00:06.8]} 48... Bf6
{[%clk 0:00:03.7]} 49. Re6 {[%clk 0:00:06.4]} 49... Qh6 {[%clk 0:00:03.1]} 50.
R2e4 {[%clk 0:00:05]} 50... Qg7 {[%clk 0:00:03.6]} 51. Ne3 {[%clk 0:00:04.9]}
51... Bxe7 {[%clk 0:00:02.2]} 52. Nf5 {[%clk 0:00:05.3]} 52... Qc3+ {[%clk
0:00:02.7]} 53. Re3 {[%clk 0:00:05.6]} 53... Qxb4 {[%clk 0:00:03.1]} 54. Kh3
{[%clk 0:00:04.1]} 54... a5 {[%clk 0:00:03.2]} 55. Nxe7 {[%clk 0:00:04.2]} 55...
Kg7 {[%clk 0:00:02.9]} 56. Nf5+ {[%clk 0:00:04.6]} 56... Kf7 {[%clk 0:00:03.6]}
57. Rxe8 {[%clk 0:00:05.4]} 57... h5 {[%clk 0:00:03.2]} 58. R8e7+ {[%clk
0:00:05.7]} 58... Kg8 {[%clk 0:00:03.8]} 59. Rg7+ {[%clk 0:00:05.5]} 59... Kf8
{[%clk 0:00:02.3]} 60. Rxg5 {[%clk 0:00:04]} 60... hxg4+ {[%clk 0:00:02.3]} 61.
Rxg4 {[%clk 0:00:04.9]} 61... Qc5 {[%clk 0:00:02.3]} 62. Rf3 {[%clk 0:00:05.5]}
62... Ke8 {[%clk 0:00:02.3]} 63. Re4+ {[%clk 0:00:05.4]} 63... Kd7 {[%clk
0:00:02.7]} 64. Rd3+ {[%clk 0:00:05.9]} 64... Kc6 {[%clk 0:00:03.2]} 65. Re6+
{[%clk 0:00:05.6]} 65... Kb7 {[%clk 0:00:03.8]} 66. Nd6+ {[%clk 0:00:05.8]}
66... Ka6 {[%clk 0:00:04]} 67. Ree3 {[%clk 0:00:03.6]} 67... Qh5+ {[%clk
0:00:04.1]} 68. Kg3 {[%clk 0:00:04]} 68... Qg5+ {[%clk 0:00:04.8]} 69. Kf3
{[%clk 0:00:04.8]} 69... Qf6+ {[%clk 0:00:05.5]} 70. Ke2 {[%clk 0:00:05.6]}
70... Qb2+ {[%clk 0:00:06.2]} 71. Rd2 {[%clk 0:00:06.1]} 71... Qh8 {[%clk
0:00:05.6]} 72. Nc4 {[%clk 0:00:05.2]} 72... Qh2+ {[%clk 0:00:06]} 73. Kd3
{[%clk 0:00:06]} 73... Qh7+ {[%clk 0:00:05.7]} 74. Kc3 {[%clk 0:00:06.2]} 74...
Qg7+ {[%clk 0:00:06.4]} 75. Kb3 {[%clk 0:00:06.1]} 75... Qf8 {[%clk 0:00:07.1]}
76. Rc3 {[%clk 0:00:05.6]} 76... Qb4+ {[%clk 0:00:07.3]} 77. Kc2 {[%clk
0:00:06.4]} 77... a4 {[%clk 0:00:07.7]} 78. Rd6 {[%clk 0:00:05.4]} 78... Ka7
{[%clk 0:00:04.9]} 79. Rxb6 {[%clk 0:00:05.5]} 79... Qc5 {[%clk 0:00:05.7]} 80.
Rb2 {[%clk 0:00:03.8]} 80... Qf5+ {[%clk 0:00:05.4]} 81. Kc1 {[%clk 0:00:04]}
81... Qf1+ {[%clk 0:00:05.6]} 82. Kc2 {[%clk 0:00:04.1]} 82... Qf5+ {[%clk
0:00:05.8]} 83. Rd3 {[%clk 0:00:04.8]} 83... Qf2+ {[%clk 0:00:06.1]} 84. Kc3
{[%clk 0:00:05.4]} 84... Qf6+ {[%clk 0:00:06.4]} 85. Kb4 {[%clk 0:00:05.7]}
85... Qc6 {[%clk 0:00:03.5]} 86. Ra2 {[%clk 0:00:04.6]} 86... Qb7+ {[%clk
0:00:03.5]} 87. Kxa4 {[%clk 0:00:04.1]} 87... Qc6+ {[%clk 0:00:03.2]} 88. Kb4+
{[%clk 0:00:04.1]} 88... Kb8 {[%clk 0:00:04.1]} 89. Ra5 {[%clk 0:00:04]} 89...
Qh1 {[%clk 0:00:03.3]} 90. Rc5 {[%clk 0:00:02.6]} 90... Qb1+ {[%clk 0:00:02.7]}
91. Rb3 {[%clk 0:00:03.3]} 91... Qe1+ {[%clk 0:00:03.4]} 92. Ka4+ {[%clk
0:00:03.6]} 92... Ka7 {[%clk 0:00:03.1]} 93. Ra5+ {[%clk 0:00:04.3]} 93... Qxa5+
{[%clk 0:00:03.2]} 94. Kxa5 {[%clk 0:00:05.2]} 94... Ka8 {[%clk 0:00:03.7]} 95.
Rb6 {[%clk 0:00:05.9]} 95... Ka7 {[%clk 0:00:04.3]} 96. Kb5 {[%clk 0:00:06.8]}
96... Ka8 {[%clk 0:00:04.5]} 97. Kc6 {[%clk 0:00:07.7]} 97... Ka7 {[%clk
0:00:05.4]} 98. Kc7 {[%clk 0:00:08.6]} 98... Ka8 {[%clk 0:00:06.3]} 99. Ra6#
{[%clk 0:00:09.4]} 1-0